Workbook

Sheet LongSAGE_CgtH_529_RT_p-values
A1: Spreadsheet n°1 (use bottom tabs to see further spreadsheets)
A2: LongSAGE | B2: List of 529 RT ( SBS frequency in cancer > SBS frequency in healthy)
A4: RT | B4: P-value (Proportion test ) | C4: Rank | D4: Adjusted p-value (FDR) | F4: 1-side proportion tests with alpha/2 = 0.025
A5: CAAGCATCCCCGTTCCA | B5: 0 | C5: 1 | D5: =0.025*$C5/1959 -> 1.276161307e-05 | F5: 372 | G5: RT passed FDR 0.025
A6: CACCCCTGATGTTCGCC | B6: 6.482191084e-158 | C6: 2 | D6: =0.025*$C6/1959 -> 2.552322614e-05
A7: TACCATCAATAAAGTAC | B7: 3.666022223e-115 | C7: 3 | D7: 3.82848392e-05
A8: GGATTTGGCCTTTTTGA | B8: 1.506366598e-95 | C8: 4 | D8: 5.104645227e-05
A9: ACCAAAAACCAAAAGTG | B9: 1.770489997e-62 | C9: 5 | D9: 6.380806534e-05
A10: GTGACCACGGGTGACGG | B10: 2.626395054e-56 | C10: 6 | D10: 7.656967841e-05
A11: CCCATCGTCCTAGAATT | B11: 2.527352291e-54 | C11: 7 | D11: 8.933129148e-05
A12: TGAGGGAATAAACCTGG | B12: 1.138725727e-52 | C12: 8 | D12: 0.0001020929045
A13: GCAACTGTGAGGAGGGG | B13: 1.340141456e-50 | C13: 9 | D13: 0.0001148545176
A14: ATAATTCTTTGTATATA | B14: 3.512271829e-47 | C14: 10 | D14: 0.0001276161307
A15: TGCACGTTTTCTGTTTA | B15: 1.068359192e-38 | C15: 11 | D15: 0.0001403777437
A16: TCAAGAAACATTAGTCT | B16: 3.029092521e-36 | C16: 12 | D16: 0.0001531393568
A17: GGACCACTGAAGAAAGA | B17: 1.044922705e-33 | C17: 13 | D17: 0.0001659009699
A18: GGTCAGTCGGTCCTGAG | B18: 1.070851951e-30 | C18: 14 | D18: 0.000178662583
A19: AACGCGGCCAATGTGGG | B19: 2.356121819e-28 | C19: 15 | D19: 0.000191424196
A20: CAGATCTTTGTGAAGAC | B20: 1.614786244e-27 | C20: 16 | D20: 0.0002041858091
A21: TGTACCTGTAATATTTT | B21: 1.636417402e-26 | C21: 17 | D21: 0.0002169474222
A22: CTAGCCTCACGAAACTG | B22: 4.588233627e-21 | C22: 18 | D22: 0.0002297090352
A23: CTGTTAGTGTGCATTCT | B23: 7.708245143e-19 | C23: 19 | D23: 0.0002424706483
A24: TATAATCTTTATGGCTT | B24: 2.24045282e-18 | C24: 20 | D24: 0.0002552322614
A25: AGCCTTTGTTGCTATCA | B25: 1.228319575e-16 | C25: 21 | D25: 0.0002679938744
A26: CCTCGGAAAATTGAGGA | B26: 3.098736702e-16 | C26: 22 | D26: 0.0002807554875
A27: AAGACAGTGGCTGGCGG | B27: 3.849256945e-16 | C27: 23 | D27: 0.0002935171006
A28: TTAGATAAGCATATGTT | B28: 5.770533458e-16 | C28: 24 | D28: 0.0003062787136
A29: TACTAATAAAAGAAAGT | B29: 6.712766648e-16 | C29: 25 | D29: 0.0003190403267
A30: TGTATAAAAATAAAAAA | B30: 1.489720849e-15 | C30: 26 | D30: 0.0003318019398
A31: AAAAATAAAGGTTCCAT | B31: 1.507130677e-15 | C31: 27 | D31: 0.0003445635528
A32: CCCCAGCCAGTCCCCAC | B32: 5.947479821e-15 | C32: 28 | D32: 0.0003573251659
A33: AGAACAAAACCTCTTCT | B33: 7.260209146e-15 | C33: 29 | D33: 0.000370086779
A34: AAGTGAAACACCAAAGT | B34: 1.132999387e-14 | C34: 30 | D34: 0.000382848392
A35: TAACCATTTTAACTCTC | B35: 1.739317638e-14 | C35: 31 | D35: 0.0003956100051
A36: AGTGCAAGACGTCTTGT | B36: 1.849094807e-14 | C36: 32 | D36: 0.0004083716182
A37: GAAAAATTTAAAGCTAA | B37: 2.959331426e-14 | C37: 33 | D37: 0.0004211332312
A38: GCATTTAAATAAAAGAT | B38: 4.230044417e-14 | C38: 34 | D38: 0.0004338948443
A39: GTTTTTGCTTCAGCGGC | B39: 5.251887179e-14 | C39: 35 | D39: 0.0004466564574
A40: TCTTGTGCATAATTCTT | B40: 6.985841795e-14 | C40: 36 | D40: 0.0004594180704
A41: AAAGTCAGAAGTCTCTA | B41: 7.219437533e-14 | C41: 37 | D41: 0.0004721796835
A42: GGCTGGGGGCCAGGGCT | B42: 1.185566077e-13 | C42: 38 | D42: 0.0004849412966
A43: AGACCATATTAAATTCT | B43: 1.253636288e-13 | C43: 39 | D43: 0.0004977029096
A44: TCTGTACACCTGTCCCC | B44: 3.65645922e-13 | C44: 40 | D44: 0.0005104645227
A45: CCGACGGGCGCTGACCC | B45: 9.454514432e-13 | C45: 41 | D45: 0.0005232261358
A46: GAAATAAAAGCAAACTT | B46: 1.209291758e-12 | C46: 42 | D46: 0.0005359877489
A47: GATCACAGTTTGCTTTG | B47: 2.27115389e-12 | C47: 43 | D47: 0.0005487493619
A48: TTTGCACCTTTCTAGTT | B48: 1.101667259e-11 | C48: 44 | D48: 0.000561510975
A49: ATTAAGAGGGACGGCCG | B49: 3.972624378e-11 | C49: 45 | D49: 0.0005742725881
A50: CTGATTTTTATTGCACA | B50: 4.843901763e-11 | C50: 46 | D50: 0.0005870342011
A51: GCGCTGGAGTGAGATGG | B51: 5.607038081e-11 | C51: 47 | D51: 0.0005997958142
A52: CAATGTGTTATGTAGTG | B52: 5.84092341e-11 | C52: 48 | D52: 0.0006125574273
A53: AGCACCTCCAGCTGTAC | B53: 6.465233831e-11 | C53: 49 | D53: 0.0006253190403
A54: CTGTTTATGACACAATG | B54: 1.142284301e-10 | C54: 50 | D54: 0.0006380806534
A55: AATAGGTCCAACCAGCT | B55: 1.623910271e-10 | C55: 51 | D55: 0.0006508422665
A56: TACCAGTGTACTGCTTT | B56: 1.684502068e-10 | C56: 52 | D56: 0.0006636038795
A57: GGTTTGGCTTAGGCTGG | B57: 2.111408934e-10 | C57: 53 | D57: 0.0006763654926
A58: CTGGCTGCAAAGAAGGG | B58: 2.113555026e-10 | C58: 54 | D58: 0.0006891271057
A59: GGAGTGTGCTCAGGAGT | B59: 2.611412534e-10 | C59: 55 | D59: 0.0007018887187
A60: CTGGGACTGACAGCCTG | B60: 3.286522019e-10 | C60: 56 | D60: 0.0007146503318
A61: CTCCTCACCTGTATTTT | B61: 4.767331326e-10 | C61: 57 | D61: 0.0007274119449
A62: GCAAAGAAAAAAAAAAG | B62: 4.771321042e-10 | C62: 58 | D62: 0.0007401735579
A63: TTCTTGTGGCGCTTCTC | B63: 1e-09 | C63: 59 | D63: 0.000752935171
A64: GGAATAAATTAATTTTC | B64: 1e-09 | C64: 60 | D64: 0.0007656967841
A65: GAGTGAGTGAGCAGGTG | B65: 1e-09 | C65: 61 | D65: 0.0007784583971
A66: TGGGGGCCGATGGGCAG | B66: 2e-09 | C66: 62 | D66: 0.0007912200102
A67: CATCTGTGAGCTTTAGA | B67: 3e-09 | C67: 63 | D67: 0.0008039816233
A68: GCCCCCAATAAAGGCAG | B68: 3e-09 | C68: 64 | D68: 0.0008167432363
A69: AATGCAGGCAGATTTCG | B69: 3e-09 | C69: 65 | D69: 0.0008295048494
A70: TGGAGCGCTACCGACAG | B70: 4e-09 | C70: 66 | D70: =0.025*$C70/1959 -> 0.0008422664625
A71: GTAGGGGTAAAAGGAGG | B71: 6e-09 | C71: 67 | D71: 0.0008550280755
A72: GCCTCCTCCCAGTAACT | B72: 7e-09 | C72: 68 | D72: 0.0008677896886
A73: GGCCAAAGGCCAAGGGG | B73: 1e-08 | C73: 69 | D73: 0.0008805513017
A74: TAGGTAGCTCATTCAGG | B74: 1.1e-08 | C74: 70 | D74: 0.0008933129148
A75: CAGTCCCCCTCAGTTCG | B75: 1.1e-08 | C75: 71 | D75: 0.0009060745278
A76: GCCTGCTGGGCTTGGCT | B76: 1.1e-08 | C76: 72 | D76: 0.0009188361409
A77: GCATAGGCTGCAACCCA | B77: 1.4e-08 | C77: 73 | D77: 0.000931597754
A78: GATGAGTCTCGATGTGT | B78: 1.5e-08 | C78: 74 | D78: 0.000944359367
A79: GAGGATGGTGTCCTGAG | B79: 1.8e-08 | C79: 75 | D79: 0.0009571209801
A80: ATGATTTATTAAACTTG | B80: 1.8e-08 | C80: 76 | D80: 0.0009698825932
A81: CCCCGCCAAGTACTGCA | B81: 2.5e-08 | C81: 77 | D81: 0.0009826442062
A82: AAACACTCTTGTACTTA | B82: 2.7e-08 | C82: 78 | D82: 0.0009954058193
A83: CTAAGACTTCACCAGTC | B83: 3.5e-08 | C83: 79 | D83: 0.001008167432
A84: CCTCCACCTAGAAGCTG | B84: 3.8e-08 | C84: 80 | D84: 0.001020929045
A85: GCTCTCCCCCCTAGCCC | B85: 3.9e-08 | C85: 81 | D85: 0.001033690658
A86: GCAACAGCAATAGGATT | B86: 4.5e-08 | C86: 82 | D86: 0.001046452272
A87: TCCGGCCGCGAAGGTGG | B87: 5e-08 | C87: 83 | D87: 0.001059213885
A88: TCAATAAAGAACAGCTA | B88: 5.2e-08 | C88: 84 | D88: 0.001071975498
A89: AATATTTCAAAATAAAC | B89: 6.4e-08 | C89: 85 | D89: 0.001084737111
A90: TTATGGGATCTCAACGA | B90: 8.8e-08 | C90: 86 | D90: 0.001097498724
A91: CAATGCTGCCAGCATTG | B91: 9.2e-08 | C91: 87 | D91: 0.001110260337
A92: TGTAAGTCTGCCTAAAT | B92: 9.4e-08 | C92: 88 | D92: 0.00112302195
A93: CAAGATAAATTTATTTG | B93: 9.8e-08 | C93: 89 | D93: 0.001135783563
A94: TTTTTGTACAGAACTGA | B94: 1.18e-07 | C94: 90 | D94: 0.001148545176
A95: TTAAAGGCCGGACAAAG | B95: 1.36e-07 | C95: 91 | D95: 0.001161306789
A96: TCCATAGATTGACAAAG | B96: 1.98e-07 | C96: 92 | D96: 0.001174068402
A97: TTTTTGATCAAAAACTA | B97: 2.35e-07 | C97: 93 | D97: 0.001186830015
A98: GCTGAAGGAAACCAGTG | B98: 2.72e-07 | C98: 94 | D98: 0.001199591628
A99: GGGGACTGAAGAGTTCG | B99: 3.51e-07 | C99: 95 | D99: 0.001212353241
A100: CTTCGAAACTCTGACAG | B100: 4.1e-07 | C100: 96 | D100: 0.001225114855
A101: GGGCCCCAAAGCACTGC | B101: 4.66e-07 | C101: 97 | D101: 0.001237876468
A102: GTTCTGGTTTAACTAAT | B102: 6.35e-07 | C102: 98 | D102: 0.001250638081
A103: CTCAGGAAATAAATGTG | B103: 6.39e-07 | C103: 99 | D103: 0.001263399694
A104: TTCACAAAGGAAGAACT | B104: 6.89e-07 | C104: 100 | D104: 0.001276161307
A105: CACTTGCCCTAATAAAA | B105: 6.98e-07 | C105: 101 | D105: 0.00128892292
A106: CGACCCCACGCCACCCC | B106: 7.08e-07 | C106: 102 | D106: 0.001301684533
A107: TTCAAAAGAAAGCTGCA | B107: 7.19e-07 | C107: 103 | D107: 0.001314446146
A108: GCCAGCCCAGCCTGGCT | B108: 7.3e-07 | C108: 104 | D108: 0.001327207759
A109: CAACATTCCTGTGATCA | B109: 8.02e-07 | C109: 105 | D109: 0.001339969372
A110: GTTCGTGCCAAATTCCG | B110: 8.64e-07 | C110: 106 | D110: 0.001352730985
A111: CCAAGTTTTTTGTGTGT | B111: 8.82e-07 | C111: 107 | D111: 0.001365492598
A112: TAAATAATACATTGTTC | B112: 9.14e-07 | C112: 108 | D112: 0.001378254211
A113: CTTATGGTTGATCAGTT | B113: 9.22e-07 | C113: 109 | D113: 0.001391015824
A114: GGAGCCATTCTGCCAAT | B114: 9.58e-07 | C114: 110 | D114: 0.001403777437
A115: TCATTGTAATGATTTCA | B115: 1.078e-06 | C115: 111 | D115: 0.001416539051
A116: ATAGACATAAAATTGGT | B116: 1.222e-06 | C116: 112 | D116: 0.001429300664
A117: GGTGGCACTCAGTCTCT | B117: 1.227e-06 | C117: 113 | D117: 0.001442062277
A118: GCCCCCCCGTGTGCAGG | B118: 1.262e-06 | C118: 114 | D118: 0.00145482389
A119: GTGACCTCCTTGGGGGT | B119: 1.276e-06 | C119: 115 | D119: 0.001467585503
A120: GGAAGAGAAGGTACAGA | B120: 1.285e-06 | C120: 116 | D120: 0.001480347116
A121: TGGTGACAGTTGTGTGT | B121: 1.302e-06 | C121: 117 | D121: 0.001493108729
A122: TGGCTAGTGTTTGCCGA | B122: 1.463e-06 | C122: 118 | D122: 0.001505870342
A123: GAGGCCGACCCCGGCCA | B123: 1.568e-06 | C123: 119 | D123: 0.001518631955
A124: GCCCACATCCGCTGAGG | B124: 1.605e-06 | C124: 120 | D124: 0.001531393568
A125: ACTGGCTGCTGAATTCT | B125: 1.91e-06 | C125: 121 | D125: 0.001544155181
A126: GTCCATCATAGAATTCT | B126: 2.181e-06 | C126: 122 | D126: 0.001556916794
A127: AGGTCCTAGCCCCTGGC | B127: 2.676e-06 | C127: 123 | D127: 0.001569678407
A128: GTAAAAGTTCTAAATCT | B128: 3.03e-06 | C128: 124 | D128: 0.00158244002
A129: CATTTCATAACTGTCAA | B129: 3.068e-06 | C129: 125 | D129: 0.001595201633
A130: GGGGAAATCGCCAGCTT | B130: 3.442e-06 | C130: 126 | D130: 0.001607963247
A131: AAATGAAAATTTTAATG | B131: 3.718e-06 | C131: 127 | D131: 0.00162072486
A132: CCTTCCAAATTGTGGGT | B132: 3.762e-06 | C132: 128 | D132: 0.001633486473
A133: GTTTCTTCCCTGCCAGA | B133: 3.894e-06 | C133: 129 | D133: 0.001646248086
A134: GGAAGGGGAAACGCACA | B134: 4.336e-06 | C134: 130 | D134: =0.025*$C134/1959 -> 0.001659009699
A135: TATTTTTGTTACAAATC | B135: 4.351e-06 | C135: 131 | D135: 0.001671771312
A136: GGAATGTACGTTATTTC | B136: 4.868e-06 | C136: 132 | D136: 0.001684532925
A137: AACTCTTGAAGTCACAC | B137: 4.946e-06 | C137: 133 | D137: 0.001697294538
A138: TTGTAAACTTAAGTGGC | B138: 5.358e-06 | C138: 134 | D138: 0.001710056151
A139: AAGGTGCCTCCATCTCT | B139: 5.659e-06 | C139: 135 | D139: 0.001722817764
A140: TGCTACTGGTATAAAGT | B140: 5.669e-06 | C140: 136 | D140: 0.001735579377
A141: TCCTCAAGATAAAGTCT | B141: 6.241e-06 | C141: 137 | D141: 0.00174834099
A142: AAGTTGCTATTAAATGG | B142: 6.258e-06 | C142: 138 | D142: 0.001761102603
A143: GGGCCAAAACCAGTAAA | B143: 7.087e-06 | C143: 139 | D143: 0.001773864216
A144: CAAAACTGTTTGTTGGC | B144: 7.452e-06 | C144: 140 | D144: 0.00178662583
A145: CCATTTTTACCTTATGT | B145: 7.893e-06 | C145: 141 | D145: 0.001799387443
A146: GTGCTAAGCGGGCCCGG | B146: 7.997e-06 | C146: 142 | D146: 0.001812149056
A147: TTTCCTTCCTTCAACTG | B147: 8.102e-06 | C147: 143 | D147: 0.001824910669
A148: CAGATAAACCATTTAAA | B148: 8.217e-06 | C148: 144 | D148: 0.001837672282
A149: AATTTTATTTCTGTTTG | B149: 8.347e-06 | C149: 145 | D149: 0.001850433895
A150: TGAAGAGAATTATTACA | B150: 8.576e-06 | C150: 146 | D150: 0.001863195508
A151: CTGTTAATAAATACTGG | B151: 8.622e-06 | C151: 147 | D151: 0.001875957121
A152: TTTCTAGGGGTATTCAT | B152: 9.053e-06 | C152: 148 | D152: 0.001888718734
A153: CAGCAGTAGCGCTGGCG | B153: 9.184e-06 | C153: 149 | D153: 0.001901480347
A154: TTAAAGATTTAGACACC | B154: 9.369e-06 | C154: 150 | D154: 0.00191424196
A155: TTCTTATTTTAGACCTG | B155: 9.482e-06 | C155: 151 | D155: 0.001927003573
A156: GAATTAACATTAAACTT | B156: 1.0501e-05 | C156: 152 | D156: 0.001939765186
A157: GAAGTTATGAAGATGCT | B157: 1.1563e-05 | C157: 153 | D157: 0.001952526799
A158: TAATTCTTCTCTATTGT | B158: 1.2056e-05 | C158: 154 | D158: 0.001965288412
A159: GGCTCCCACTGCAGCCT | B159: 1.3859e-05 | C159: 155 | D159: 0.001978050026
A160: TGTGTTGTCATATTTGG | B160: 1.4299e-05 | C160: 156 | D160: 0.001990811639
A161: TTCATATTAAAGTTGTC | B161: 1.4817e-05 | C161: 157 | D161: 0.002003573252
A162: GTGTATCTTTTTGCTTA | B162: 1.675e-05 | C162: 158 | D162: 0.002016334865
A163: TCACCTGAAACTTACAA | B163: 1.8015e-05 | C163: 159 | D163: 0.002029096478
A164: GGCTTTGATTTTTTTCA | B164: 1.8174e-05 | C164: 160 | D164: 0.002041858091
A165: ACCTCAGGAAATAAACG | B165: 1.8982e-05 | C165: 161 | D165: 0.002054619704
A166: CAAGCAGGACAGAATGG | B166: 2.2504e-05 | C166: 162 | D166: 0.002067381317
A167: CTGGCGCCGATGGCTGC | B167: 2.3149e-05 | C167: 163 | D167: 0.00208014293
A168: GGGGTCTGGGCCCTGCC | B168: 2.3782e-05 | C168: 164 | D168: 0.002092904543
A169: CATTGAAGGGTCAATGC | B169: 2.6221e-05 | C169: 165 | D169: 0.002105666156
A170: ATGAATTAGCATATGCC | B170: 2.6626e-05 | C170: 166 | D170: 0.002118427769
A171: TTGATGTACAGTTTCTG | B171: 2.9579e-05 | C171: 167 | D171: 0.002131189382
A172: GTTTGCAAGTGAACAGA | B172: 2.9734e-05 | C172: 168 | D172: 0.002143950995
A173: TTTCCCTGCCCCACTTC | B173: 3.0561e-05 | C173: 169 | D173: 0.002156712608
A174: CTGTGACACAGCTTGCC | B174: 3.2106e-05 | C174: 170 | D174: 0.002169474222
A175: AAGATAATGCCTGTGGT | B175: 3.4213e-05 | C175: 171 | D175: 0.002182235835
A176: TAACTTTTATATGAAAA | B176: 3.4727e-05 | C176: 172 | D176: 0.002194997448
A177: ACGGTGATGTCAGCTCT | B177: 3.5383e-05 | C177: 173 | D177: 0.002207759061
A178: AACTAATACTACAATAA | B178: 3.7007e-05 | C178: 174 | D178: 0.002220520674
A179: CCCCCTCCGGGAATGCG | B179: 3.927e-05 | C179: 175 | D179: 0.002233282287
A180: CAGCCATAAAAGGGACA | B180: 3.9489e-05 | C180: 176 | D180: 0.0022460439
A181: CTACAATAAATGCAGCT | B181: 4.3327e-05 | C181: 177 | D181: 0.002258805513
A182: TTGTAAACATTTCTTTC | B182: 4.3791e-05 | C182: 178 | D182: 0.002271567126
A183: CAGCGCCACCTGGAAGC | B183: 4.6808e-05 | C183: 179 | D183: 0.002284328739
A184: GTGCTGAATGGCTGAGG | B184: 4.7111e-05 | C184: 180 | D184: 0.002297090352
A185: CTAACCAGACACGCCGT | B185: 4.7149e-05 | C185: 181 | D185: 0.002309851965
A186: GCAATAAGTGTCAGACT | B186: 4.8534e-05 | C186: 182 | D186: 0.002322613578
A187: GTTTAAATCGACTGTTT | B187: 4.9104e-05 | C187: 183 | D187: 0.002335375191
A188: CTCATAAGGAAAGGTTA | B188: 5.1302e-05 | C188: 184 | D188: 0.002348136804
A189: TTCTCTCCCCAGATTGT | B189: 5.3454e-05 | C189: 185 | D189: 0.002360898418
A190: TACGTTGCAGCTTAACA | B190: 5.4946e-05 | C190: 186 | D190: 0.002373660031
A191: TGAGGCCAGGCCTGTAG | B191: 5.5272e-05 | C191: 187 | D191: 0.002386421644
A192: AGAGACTCTTGTTAGTC | B192: 5.598e-05 | C192: 188 | D192: 0.002399183257
A193: TAATAAAGCATCTCTGG | B193: 5.6239e-05 | C193: 189 | D193: 0.00241194487
A194: GTGCTGCGTGAGCGGAG | B194: 5.6301e-05 | C194: 190 | D194: 0.002424706483
A195: GTGTAATAAGACATAAC | B195: 5.7182e-05 | C195: 191 | D195: 0.002437468096
A196: TGGTACACGTAGGCCCT | B196: 5.932e-05 | C196: 192 | D196: 0.002450229709
A197: AAATAAAGAATTTAAAG | B197: 6.0333e-05 | C197: 193 | D197: 0.002462991322
A198: CTGCACTTACTCCTTTT | B198: 6.3464e-05 | C198: 194 | D198: =0.025*$C198/1959 -> 0.002475752935
A199: CCTATAATAAACTAAGT | B199: 6.4973e-05 | C199: 195 | D199: 0.002488514548
A200: GCACGTGTCTTCTTAGG | B200: 7.1448e-05 | C200: 196 | D200: 0.002501276161
A201: TTACCTCCTTCAATTGA | B201: 7.1843e-05 | C201: 197 | D201: 0.002514037774
... 332 more rows

Sheet LongSAGE_CgtH_372_RT_FDR_mapped
A1: Spreadsheet n°2 (use bottom tabs to see further spreadsheets)
C2: Mapping of the 372 RT (SBS frequency in cancer > SBS frequency in healthy) that passed FDR
A4: # Date of tag to transcript mapping: Wed_Jan_27_15:58:49_CET_2010
A5: # Genbank release : NCBI-GenBank_Flat_File_Release_173.0
A6: # Unigene build : UniGene_Build_219_Homo_sapiens
A7: # Organism : Homo_sapiens
A8: # Enzym : NlaIII
A9: # Mapper : Sagettarius
A12: Rank | B12: RT | C12: Sequence | D12: Genbank Acc. | E12: Description
A13: 1 | B13: CAAGCATCCCCGTTCCA | C13: - | D13: - | E13: no match
A14: 2 | B14: CACCCCTGATGTTCGCC | C14: cDNA | D14: AK298198 | E14: cDNA FLJ52237 complete cds, highly similar to Creatine kinase B-type (EC 2.7.3.2).
A15: 3 | B15: TACCATCAATAAAGTAC | C15: cDNA | D15: AB062273 | E15: OK/SW-cl.12 mRNA for glyceraldehyde-3-phosphate dehydrogenase, complete cds.
A16: 4 | B16: GGATTTGGCCTTTTTGA | C16: RIBO | D16: NM_001004 | E16: Homo sapiens ribosomal protein, large, P2 (RPLP2), mRNA.
A17: 5 | B17: ACCAAAAACCAAAAGTG | C17: HTC | D17: BC036531 | E17: collagen, type I, alpha 1, mRNA, complete cds.
A18: 6 | B18: GTGACCACGGGTGACGG | C18: EST | D18: AJ706842 | E18: 71 Hs.586920 Transcribed locus, strongly similar to XP_001157751.1 PREDICTED: similar to JAM-IT/VE-JAM isoform 1 [Pan troglodytes]
A19: '' | B19: '' | C19: EST | D19: BQ447386 | E19: 1 Hs.662381 Family with sequence similarity 182, member A
A20: 7 | B20: CCCATCGTCCTAGAATT | C20: HTC | D20: BC000228 | E20: cDNA clone IMAGE:3353308, **** WARNING: chimeric clone ****.
A21: '' | B21: '' | C21: HTC | D21: BC008339 | E21: cDNA clone IMAGE:3507404, **** WARNING: chimeric clone ****.
A22: '' | B22: '' | C22: HTC | D22: BC010864 | E22: cDNA clone IMAGE:3898245, **** WARNING: chimeric clone ****.
A23: '' | B23: '' | C23: HTC | D23: BC013387 | E23: Homo sapiens, Similar to cytochrome c oxidase II, clone IMAGE:4050172, mRNA.
A24: '' | B24: '' | C24: HTC | D24: BC013388 | E24: Homo sapiens, Similar to cytochrome c oxidase II, clone IMAGE:3681696, mRNA.
A25: '' | B25: '' | C25: HTC | D25: BC013390 | E25: Homo sapiens, Similar to cytochrome c oxidase II, clone IMAGE:4041403, mRNA.
A26: '' | B26: '' | C26: HTC | D26: BC013391 | E26: Homo sapiens, Similar to cytochrome c oxidase II, clone IMAGE:4041785, mRNA.
A27: '' | B27: '' | C27: HTC | D27: BC021246 | E27: zinc finger, FYVE domain containing 20, mRNA (cDNA clone IMAGE:4558623), **** WARNING: chimeric clone ****.
A28: 8 | B28: TGAGGGAATAAACCTGG | C28: HTC | D28: BC007086 | E28: triosephosphate isomerase 1, mRNA, complete cds.
A29: '' | B29: '' | C29: HTC | D29: BC002565 | E29: cDNA clone IMAGE:3138570, **** WARNING: chimeric clone ****.
A30: '' | B30: '' | C30: HTC | D30: BC004230 | E30: cDNA clone IMAGE:3546879, **** WARNING: chimeric clone ****.
A31: '' | B31: '' | C31: HTC | D31: BC009885 | E31: cDNA clone IMAGE:3959863, **** WARNING: chimeric clone ****.
A32: '' | B32: '' | C32: HTC | D32: BC018899 | E32: Homo sapiens, clone IMAGE:3951562, mRNA.
A33: 9 | B33: GCAACTGTGAGGAGGGG | C33: - | D33: - | E33: no match
A34: 10 | B34: ATAATTCTTTGTATATA | C34: RIBO | D34: NM_001032 | E34: Homo sapiens ribosomal protein S29 (RPS29), transcript variant 1, mRNA.
A35: 11 | B35: TGCACGTTTTCTGTTTA | C35: HTC | D35: AF370435 | E35: PP9932 mRNA, complete cds.
A36: 12 | B36: TCAAGAAACATTAGTCT | C36: HTC | D36: BC012132 | E36: DEAD (Asp-Glu-Ala-Asp) box polypeptide 1, mRNA, complete cds.
A37: '' | B37: '' | C37: HTC | D37: BC012739 | E37: cDNA clone IMAGE:3835131, containing frame-shift errors.
A38: 13 | B38: GGACCACTGAAGAAAGA | C38: RIBO | D38: NM_000967 | E38: Homo sapiens ribosomal protein L3 (RPL3), transcript variant 1, mRNA.
A39: '' | B39: '' | C39: RIBO | D39: NM_001033853 | E39: Homo sapiens ribosomal protein L3 (RPL3), transcript variant 2, mRNA.
A40: 14 | B40: GGTCAGTCGGTCCTGAG | C40: HTC | D40: BC013858 | E40: cDNA clone IMAGE:3869909, **** WARNING: chimeric clone ****.
A41: 15 | B41: AACGCGGCCAATGTGGG | C41: cDNA | D41: EF611126 | E41: macrophage migration inhibitory factor (MIF) mRNA, complete cds.
A42: '' | B42: '' | C42: cDNA | D42: L10612 | E42: Human glycosylation-inhibiting factor mRNA, complete cds.
A43: 16 | B43: CAGATCTTTGTGAAGAC | C43: - | D43: - | E43: no match
A44: 17 | B44: TGTACCTGTAATATTTT | C44: HTC | D44: BC000696 | E44: tubulin, alpha 1b, mRNA, complete cds.
A45: '' | B45: '' | C45: HTC | D45: BC000431 | E45: mRNA similar to tubulin alpha 1 (cDNA clone IMAGE:2819847).
A46: '' | B46: '' | C46: HTC | D46: BC001209 | E46: cDNA clone IMAGE:3502620, **** WARNING: chimeric clone ****.
A47: '' | B47: '' | C47: HTC | D47: BC008330 | E47: cDNA clone IMAGE:3505537, **** WARNING: chimeric clone ****.
A48: '' | B48: '' | C48: HTC | D48: BC018948 | E48: tubulin, alpha 1b, mRNA (cDNA clone IMAGE:4130515).
A49: '' | B49: '' | C49: HTC | D49: BC080592 | E49: tubulin, alpha 4a, mRNA (cDNA clone IMAGE:4541944), **** WARNING: chimeric clone ****.
A50: 18 | B50: CTAGCCTCACGAAACTG | C50: HTC | D50: BC000292 | E50: actin, gamma 1, mRNA, complete cds.
A51: '' | B51: '' | C51: HTC | D51: BC018861 | E51: actin, gamma 1, mRNA (cDNA clone IMAGE:3141563).
A52: '' | B52: '' | C52: HTC | D52: BC019044 | E52: cDNA clone IMAGE:4635339, **** WARNING: chimeric clone ****.
A53: '' | B53: '' | C53: HTC | D53: BC021033 | E53: cDNA clone IMAGE:3832154, **** WARNING: chimeric clone ****.
A54: '' | B54: '' | C54: HTC | D54: BC021036 | E54: actin, gamma 1, mRNA (cDNA clone IMAGE:3836590), **** WARNING: chimeric clone ****.
A55: '' | B55: '' | C55: HTC | D55: BC023606 | E55: mRNA similar to actin, beta (cDNA clone IMAGE:4640691).
A56: '' | B56: '' | C56: HTC | D56: BC039144 | E56: actin, gamma 1, mRNA (cDNA clone IMAGE:3866554), with apparent retained intron.
A57: '' | B57: '' | C57: HTC | D57: BC063495 | E57: actin, gamma 1, mRNA (cDNA clone IMAGE:5398241).
A58: 19 | B58: CTGTTAGTGTGCATTCT | C58: HTC | D58: BC001484 | E58: malate dehydrogenase 1, NAD (soluble), mRNA, complete cds.
A59: 20 | B59: TATAATCTTTATGGCTT | C59: HTC | D59: BC000895 | E59: single-stranded DNA binding protein 1, mRNA, complete cds.
A60: 21 | B60: AGCCTTTGTTGCTATCA | C60: cDNA | D60: AY264853 | E60: proliferation-inducing gene 14 (PIG14) mRNA, complete cds.
A61: 22 | B61: CCTCGGAAAATTGAGGA | C61: RIBO | D61: NM_000999 | E61: Homo sapiens ribosomal protein L38 (RPL38), transcript variant 1, mRNA.
A62: '' | B62: '' | C62: RIBO | D62: NM_001035258 | E62: Homo sapiens ribosomal protein L38 (RPL38), transcript variant 2, mRNA.
A63: 23 | B63: AAGACAGTGGCTGGCGG | C63: RIBO | D63: NM_000998 | E63: Homo sapiens ribosomal protein L37a (RPL37A), mRNA.
A64: 24 | B64: TTAGATAAGCATATGTT | C64: cDNA | D64: AB063318 | E64: MoDP-2, MoDP-3 mRNA for acute morphine dependence related protein 2, acute morphine dependence related peptide 3, complete cds.
A65: '' | B65: '' | C65: cDNA | D65: AF385084 | E65: heat shock protein mRNA, complete cds.
A66: 25 | B66: TACTAATAAAAGAAAGT | C66: HTC | D66: BC008488 | E66: reactive oxygen species modulator 1, mRNA, complete cds.
A67: 26 | B67: TGTATAAAAATAAAAAA | C67: EST | D67: AJ714730 | E67: 1 Hs.112318 Translocase of outer mitochondrial membrane 7 homolog (yeast)
A68: '' | B68: '' | C68: EST | D68: AA631721 | E68: 202 Hs.192374 Heat shock protein 90kDa beta (Grp94), member 1
A69: '' | B69: '' | C69: EST | D69: AI583046 | E69: 7 Hs.708769 Transcribed locus, strongly similar to NP_003290.1 heat shock protein 90kDa beta, member 1 [Homo sapiens]
A70: 27 | B70: AAAAATAAAGGTTCCAT | C70: HTC | D70: BC011384 | E70: ATP synthase, H+ transporting, mitochondrial F1 complex, alpha subunit 1, cardiac muscle, mRNA, complete cds.
A71: '' | B71: '' | C71: HTC | D71: BC001637 | E71: cDNA clone IMAGE:3355758, **** WARNING: chimeric clone ****.
A72: '' | B72: '' | C72: HTC | D72: BC004521 | E72: cDNA clone IMAGE:3939141, **** WARNING: chimeric clone ****.
A73: '' | B73: '' | C73: HTC | D73: BC014208 | E73: ATP synthase, H+ transporting, mitochondrial F1 complex, alpha subunit 1, cardiac muscle, mRNA (cDNA clone IMAGE:4634710), **** WARNING: chimeric clone ****.
A74: '' | B74: '' | C74: HTC | D74: BC028335 | E74: ATP synthase, H+ transporting, mitochondrial F1 complex, alpha subunit 1, cardiac muscle, mRNA (cDNA clone IMAGE:4705390).
A75: '' | B75: '' | C75: HTC | D75: BC042694 | E75: ATP synthase, H+ transporting, mitochondrial F1 complex, alpha subunit 1, cardiac muscle, mRNA (cDNA clone IMAGE:3871266).
A76: '' | B76: '' | C76: HTC | D76: CR627212 | E76: mRNA; cDNA DKFZp686N10225 (from clone DKFZp686N10225).
A77: 28 | B77: CCCCAGCCAGTCCCCAC | C77: RIBO | D77: NM_001005 | E77: Homo sapiens ribosomal protein S3 (RPS3), mRNA.
A78: 29 | B78: AGAACAAAACCTCTTCT | C78: HTC | D78: BC007063 | E78: peroxiredoxin 1, mRNA, complete cds.
A79: 30 | B79: AAGTGAAACACCAAAGT | C79: EST | D79: AW411440 | E79: 2 Hs.593793 Transcribed locus
A80: 31 | B80: TAACCATTTTAACTCTC | C80: HTC | D80: BC003060 | E80: fucosidase, alpha-L- 2, plasma, mRNA, complete cds.
A81: 32 | B81: AGTGCAAGACGTCTTGT | C81: EST | D81: GD138057 | E81: 1 Hs.717425 Transcribed locus
A82: 33 | B82: GAAAAATTTAAAGCTAA | C82: cDNA | D82: AY833562 | E82: chromosome X brain expressed X-linked 3 (BEX3) mRNA, complete cds.
A83: 34 | B83: GCATTTAAATAAAAGAT | C83: HTC | D83: BC000211 | E83: eukaryotic translation elongation factor 1 beta 2, mRNA, complete cds.
A84: '' | B84: '' | C84: HTC | D84: BC029316 | E84: eukaryotic translation elongation factor 1 beta 2, mRNA (cDNA clone IMAGE:3462876).
A85: 35 | B85: GTTTTTGCTTCAGCGGC | C85: EST | D85: AA931591 | E85: 34 Hs.79110 Nucleolin
A86: '' | B86: '' | C86: EST | D86: AA938104 | E86: 1 Hs.596834 Transcribed locus
A87: 36 | B87: TCTTGTGCATAATTCTT | C87: HTC | D87: BC067223 | E87: lactate dehydrogenase A, mRNA, complete cds.
A88: '' | B88: '' | C88: HTC | D88: BC000749 | E88: lactate dehydrogenase A, mRNA (cDNA clone IMAGE:2960999), **** WARNING: chimeric clone ****.
A89: '' | B89: '' | C89: HTC | D89: BC001829 | E89: lactate dehydrogenase A, mRNA (cDNA clone IMAGE:2960999), **** WARNING: chimeric clone ****.
A90: '' | B90: '' | C90: HTC | D90: BC011633 | E90: cDNA clone IMAGE:3958333, **** WARNING: chimeric clone ****.
A91: '' | B91: '' | C91: HTC | D91: BC025288 | E91: cDNA clone IMAGE:3830552, **** WARNING: chimeric clone ****.
A92: '' | B92: '' | C92: HTC | D92: BC051361 | E92: lactate dehydrogenase A, mRNA (cDNA clone IMAGE:4639743).
A93: '' | B93: '' | C93: HTC | D93: BC072009 | E93: lactate dehydrogenase A, mRNA (cDNA clone IMAGE:4551914), **** WARNING: chimeric clone ****.
A94: 37 | B94: AAAGTCAGAAGTCTCTA | C94: HTC | D94: BC000484 | E94: ubiquinol-cytochrome c reductase core protein II, mRNA, complete cds.
A95: 38 | B95: GGCTGGGGGCCAGGGCT | C95: HTC | D95: BC002475 | E95: profilin 1, mRNA, complete cds.
A96: '' | B96: '' | C96: HTC | D96: BC011867 | E96: cDNA clone IMAGE:4542474, **** WARNING: chimeric clone ****.
A97: 39 | B97: AGACCATATTAAATTCT | C97: cDNA | D97: AF153608 | E97: sin3 associated polypeptide (SAP18) mRNA, complete cds.
A98: 40 | B98: TCTGTACACCTGTCCCC | C98: RIBO | D98: NM_001015 | E98: Homo sapiens ribosomal protein S11 (RPS11), mRNA.
A99: 41 | B99: CCGACGGGCGCTGACCC | C99: EST | D99: CN273450 | E99: 2 Hs.586920 Transcribed locus, strongly similar to XP_001157751.1 PREDICTED: similar to JAM-IT/VE-JAM isoform 1 [Pan troglodytes]
A100: 42 | B100: GAAATAAAAGCAAACTT | C100: cDNA | D100: U78525 | E100: eukaryotic translation initiation factor (eIF3) mRNA, complete cds.
A101: 43 | B101: GATCACAGTTTGCTTTG | C101: cDNA | D101: AY189689 | E101: transformation-related protein 5 mRNA, complete cds.
A102: 44 | B102: TTTGCACCTTTCTAGTT | C102: HTC | D102: BC087839 | E102: connective tissue growth factor, mRNA, complete cds.
A103: 45 | B103: ATTAAGAGGGACGGCCG | C103: EST | D103: EB360670 | E103: 2 Hs.440475 Succinate dehydrogenase complex, subunit A, flavoprotein (Fp)
A104: 46 | B104: CTGATTTTTATTGCACA | C104: cDNA | D104: AF152169 | E104: DHP protein mRNA, complete cds.
A105: 47 | B105: GCGCTGGAGTGAGATGG | C105: HTC | D105: BC000198 | E105: splicing factor 3b, subunit 5, 10kDa, mRNA, complete cds.
A106: 48 | B106: CAATGTGTTATGTAGTG | C106: HTC | D106: BC000266 | E106: NADH dehydrogenase (ubiquinone) 1 alpha subcomplex, 1, 7.5kDa, mRNA, complete cds.
A107: 49 | B107: AGCACCTCCAGCTGTAC | C107: EST | D107: AA629269 | E107: 77 Hs.515070 Eukaryotic translation elongation factor 2
A108: '' | B108: '' | C108: EST | D108: AA721709 | E108: 3 Hs.713718 Transcribed locus
A109: 50 | B109: CTGTTTATGACACAATG | C109: HTC | D109: BC035259 | E109: DEK oncogene, mRNA, complete cds.
A110: 51 | B110: AATAGGTCCAACCAGCT | C110: RIBO | D110: NM_001028 | E110: Homo sapiens ribosomal protein S25 (RPS25), mRNA.
A111: 52 | B111: TACCAGTGTACTGCTTT | C111: HTC | D111: BC002676 | E111: heat shock 60kDa protein 1 (chaperonin), mRNA, complete cds.
A112: '' | B112: '' | C112: HTC | D112: BC010112 | E112: cDNA clone IMAGE:3630225, **** WARNING: chimeric clone ****.
A113: '' | B113: '' | C113: HTC | D113: BC021005 | E113: cDNA clone IMAGE:3844238, **** WARNING: chimeric clone ****.
A114: '' | B114: '' | C114: HTC | D114: BC047350 | E114: heat shock 60kDa protein 1 (chaperonin), mRNA (cDNA clone IMAGE:4214709).
A115: 53 | B115: GGTTTGGCTTAGGCTGG | C115: HTC | D115: BC001426 | E115: ubiquinol-cytochrome c reductase hinge protein, mRNA, complete cds.
A116: '' | B116: '' | C116: HTC | D116: BC011925 | E116: cDNA clone IMAGE:4542938, **** WARNING: chimeric clone ****.
A117: 54 | B117: CTGGCTGCAAAGAAGGG | C117: HTC | D117: BC006229 | E117: cytochrome c oxidase subunit Vb, mRNA, complete cds.
A118: 55 | B118: GGAGTGTGCTCAGGAGT | C118: cDNA | D118: D82057 | E118: MRLC1 mRNA for myosin regulatory light chain, complete cds.
A119: 56 | B119: CTGGGACTGACAGCCTG | C119: cDNA | D119: AF117235 | E119: glycine-rich protein mRNA, complete cds.
A120: '' | B120: '' | C120: cDNA | D120: AF182290 | E120: U6 snRNA-associated Sm-like protein LSm4 mRNA, complete cds.
A121: 57 | B121: CTCCTCACCTGTATTTT | C121: RIBO | D121: NM_012423 | E121: Homo sapiens ribosomal protein L13a (RPL13A), mRNA.
A122: 58 | B122: GCAAAGAAAAAAAAAAG | C122: cDNA | D122: U24576 | E122: breast tumor autoantigen (LMO4) mRNA, complete cds.
A123: 59 | B123: TTCTTGTGGCGCTTCTC | C123: - | D123: - | E123: no match
A124: 60 | B124: GGAATAAATTAATTTTC | C124: HTC | D124: BC001006 | E124: cytochrome c-1, mRNA, complete cds.
A125: '' | B125: '' | C125: HTC | D125: BC033076 | E125: cDNA clone IMAGE:5516956, **** WARNING: chimeric clone ****.
A126: 61 | B126: GAGTGAGTGAGCAGGTG | C126: cDNA | D126: AF212229 | E126: GL008 mRNA, complete cds.
A127: 62 | B127: TGGGGGCCGATGGGCAG | C127: HTC | D127: BC017364 | E127: transducin-like enhancer of split 2 (E(sp1) homolog, Drosophila), mRNA, complete cds.
A128: 63 | B128: CATCTGTGAGCTTTAGA | C128: HTC | D128: BC002726 | E128: death-associated protein, mRNA, complete cds.
A129: '' | B129: '' | C129: HTC | D129: BC080565 | E129: cDNA clone IMAGE:6371185, **** WARNING: chimeric clone ****.
A130: 64 | B130: GCCCCCAATAAAGGCAG | C130: HTC | D130: BC001693 | E130: lectin, galactoside-binding, soluble, 1, mRNA, complete cds.
A131: 65 | B131: AATGCAGGCAGATTTCG | C131: HTC | D131: BC010018 | E131: S-adenosylhomocysteine hydrolase, mRNA, complete cds.
A132: 66 | B132: TGGAGCGCTACCGACAG | C132: - | D132: - | E132: no match
A133: 67 | B133: GTAGGGGTAAAAGGAGG | C133: - | D133: - | E133: no match
A134: 68 | B134: GCCTCCTCCCAGTAACT | C134: cDNA | D134: AF109355 | E134: MSTP001 mRNA, complete cds.
A135: '' | B135: '' | C135: cDNA | D135: AF315506 | E135: ARG134 protein mRNA, complete cds.
A136: '' | B136: '' | C136: cDNA | D136: AY245432 | E136: eukaryotic translation initiation factor 3 subunit k mRNA, complete cds.
A137: 69 | B137: GGCCAAAGGCCAAGGGG | C137: HTC | D137: BC002524 | E137: sorting nexin 17, mRNA, complete cds.
A138: '' | B138: '' | C138: HTC | D138: BC021108 | E138: sorting nexin 17, mRNA (cDNA clone IMAGE:4622841), with apparent retained intron.
A139: '' | B139: '' | C139: HTC | D139: BC032320 | E139: sorting nexin 17, mRNA (cDNA clone IMAGE:5225353), containing frame-shift errors.
A140: 70 | B140: TAGGTAGCTCATTCAGG | C140: HTC | D140: BC000839 | E140: cDNA clone IMAGE:3457003, with apparent retained intron. Warning ! LongSAGE tag has been extracted from an IRE
A141: '' | B141: '' | C141: HTC | D141: BC011809 | E141: cDNA clone IMAGE:2960021, with apparent retained intron. Warning ! LongSAGE tag has been extracted from an IRE
A142: '' | B142: '' | C142: HTC | D142: BC017253 | E142: cDNA clone IMAGE:2960008, with apparent retained intron. Warning ! LongSAGE tag has been extracted from an IRE
A143: '' | B143: '' | C143: HTC | D143: BC027980 | E143: cDNA clone IMAGE:3855154, with apparent retained intron. Warning ! LongSAGE tag has been extracted from an IRE
A144: '' | B144: '' | C144: HTC | D144: BC063571 | E144: cDNA clone IMAGE:3867950, with apparent retained intron. Warning ! LongSAGE tag has been extracted from an IRE
A145: 71 | B145: CAGTCCCCCTCAGTTCG | C145: HTC | D145: BC001070 | E145: tubulin tyrosine ligase-like family, member 12, mRNA, complete cds.
A146: 72 | B146: GCCTGCTGGGCTTGGCT | C146: HTC | D146: BC011836 | E146: glutathione peroxidase 4 (phospholipid hydroperoxidase), mRNA, complete cds.
A147: '' | B147: '' | C147: HTC | D147: BC058329 | E147: glutathione peroxidase 4 (phospholipid hydroperoxidase), mRNA (cDNA clone IMAGE:6527068).
A148: '' | B148: '' | C148: HTC | D148: BC065537 | E148: cDNA clone IMAGE:6020063, **** WARNING: chimeric clone ****.
A149: 73 | B149: GCATAGGCTGCAACCCA | C149: HTC | D149: BC001633 | E149: Tu translation elongation factor, mitochondrial, mRNA, complete cds.
A150: '' | B150: '' | C150: HTC | D150: BC008728 | E150: cDNA clone IMAGE:3161897, **** WARNING: chimeric clone ****.
A151: '' | B151: '' | C151: HTC | D151: BC023617 | E151: cDNA clone IMAGE:4652596, **** WARNING: chimeric clone ****.
A152: '' | B152: '' | C152: HTC | D152: BC065247 | E152: cDNA clone IMAGE:6060926, **** WARNING: chimeric clone ****.
A153: '' | B153: '' | C153: HTC | D153: BC070487 | E153: cDNA clone IMAGE:6025821, **** WARNING: chimeric clone ****.
A154: 74 | B154: GATGAGTCTCGATGTGT | C154: HTC | D154: BC004427 | E154: proteasome (prosome, macropain) subunit, alpha type, 7, mRNA, complete cds.
A155: '' | B155: '' | C155: HTC | D155: AF054185 | E155: proteasome subunit HSPC mRNA, complete cds.
A156: '' | B156: '' | C156: HTC | D156: AF130109 | E156: clone FLB5740 PRO1512 mRNA, complete cds.
A157: 75 | B157: GAGGATGGTGTCCTGAG | C157: HTC | D157: BC042921 | E157: prostate tumor overexpressed 1, mRNA, complete cds.
A158: '' | B158: '' | C158: HTC | D158: BC065486 | E158: prostate tumor overexpressed 1, mRNA (cDNA clone IMAGE:5922363), with apparent retained intron.
A159: 76 | B159: ATGATTTATTAAACTTG | C159: HTC | D159: BC007027 | E159: tetratricopeptide repeat domain 35, mRNA (cDNA clone IMAGE:4051121), containing frame-shift errors.
A160: 77 | B160: CCCCGCCAAGTACTGCA | C160: HTC | D160: BC141818 | E160: calponin 2, mRNA, complete cds.
A161: 78 | B161: AAACACTCTTGTACTTA | C161: EST | D161: AA772264 | E161: 50 Hs.151134 Oxidase (cytochrome c) assembly 1-like
A162: 79 | B162: CTAAGACTTCACCAGTC | C162: cDNA | D162: AY029066 | E162: Humanin (HN1) mRNA, complete cds.
A163: 80 | B163: CCTCCACCTAGAAGCTG | C163: HTC | D163: BC000452 | E163: peroxiredoxin 2, mRNA, complete cds.
A164: '' | B164: '' | C164: HTC | D164: BC064138 | E164: peroxiredoxin 2, mRNA (cDNA clone IMAGE:6176908).
A165: 81 | B165: GCTCTCCCCCCTAGCCC | C165: HTC | D165: BC033500 | E165: nuclear receptor subfamily 1, group H, member 2, mRNA, complete cds.
A166: '' | B166: '' | C166: HTC | D166: CR749648 | E166: mRNA; cDNA DKFZp686D1580 (from clone DKFZp686D1580).
A167: 82 | B167: GCAACAGCAATAGGATT | C167: HTC | D167: BC009480 | E167: Sec61 gamma subunit, mRNA, complete cds.
A168: '' | B168: '' | C168: HTC | D168: AF054184 | E168: Sec61 gamma mRNA, complete cds.
A169: 83 | B169: TCCGGCCGCGAAGGTGG | C169: cDNA | D169: AY508979 | E169: unknown protein (HSPC016) mRNA, complete cds.
A170: '' | B170: '' | C170: cDNA | D170: AY794023 | E170: HSPC016 protein (HSPC016) mRNA, complete cds.
A171: 84 | B171: TCAATAAAGAACAGCTA | C171: HTC | D171: BC000394 | E171: glutaminyl-tRNA synthetase, mRNA, complete cds.
A172: '' | B172: '' | C172: HTC | D172: AF130067 | E172: clone FLB8204 PRO2195 mRNA, complete cds.
A173: '' | B173: '' | C173: HTC | D173: BX648271 | E173: mRNA; cDNA DKFZp686C10119 (from clone DKFZp686C10119).
A174: 85 | B174: AATATTTCAAAATAAAC | C174: EST | D174: AA844173 | E174: 34 Hs.558296 Acid phosphatase 1, soluble
A175: '' | B175: '' | C175: EST | D175: AA693391 | E175: 3 Hs.644026 Transcribed locus
A176: 86 | B176: TTATGGGATCTCAACGA | C176: cDNA | D176: AY159316 | E176: lung cancer oncogene 7 mRNA, complete cds.
A177: 87 | B177: CAATGCTGCCAGCATTG | C177: - | D177: - | E177: no match
A178: 88 | B178: TGTAAGTCTGCCTAAAT | C178: HTC | D178: BC010132 | E178: KH domain containing, RNA binding, signal transduction associated 1, mRNA, complete cds.
A179: 89 | B179: CAAGATAAATTTATTTG | C179: cDNA | D179: AF217963 | E179: NRAGE mRNA, complete cds.
A180: '' | B180: '' | C180: cDNA | D180: AF258554 | E180: PP2250 mRNA, complete cds.
A181: 90 | B181: TTTTTGTACAGAACTGA | C181: cDNA | D181: AB097047 | E181: mRNA for putative MAPK activating protein, complete cds, clone: PM23.
A182: 91 | B182: TTAAAGGCCGGACAAAG | C182: - | D182: - | E182: no match
A183: 92 | B183: TCCATAGATTGACAAAG | C183: EST | D183: BP388315 | E183: 4 Hs.712658 Transcribed locus
A184: 93 | B184: TTTTTGATCAAAAACTA | C184: HTC | D184: BC058926 | E184: catenin (cadherin-associated protein), beta 1, 88kDa, mRNA, complete cds.
A185: 94 | B185: GCTGAAGGAAACCAGTG | C185: HTC | D185: BC033522 | E185: v-rel reticuloendotheliosis viral oncogene homolog A (avian), mRNA, complete cds.
A186: '' | B186: '' | C186: HTC | D186: BC069248 | E186: cDNA clone IMAGE:4123265, containing frame-shift errors.
A187: 95 | B187: GGGGACTGAAGAGTTCG | C187: HTC | D187: BC001390 | E187: ubiquinol-cytochrome c reductase, complex III subunit VII, 9.5kDa, mRNA, complete cds.
A188: 96 | B188: CTTCGAAACTCTGACAG | C188: HTC | D188: BC001632 | E188: NADH dehydrogenase (ubiquinone) flavoprotein 2, 24kDa, mRNA, complete cds.
A189: 97 | B189: GGGCCCCAAAGCACTGC | C189: HTC | D189: BC006151 | E189: chromosome 19 open reading frame 48, mRNA, complete cds.
A190: 98 | B190: GTTCTGGTTTAACTAAT | C190: cDNA | D190: AF114836 | E190: ATP synthase inhibitor protein mRNA, complete cds.
A191: 99 | B191: CTCAGGAAATAAATGTG | C191: cDNA | D191: AF112217 | E191: ubiquinol-cytochrome c reductase complex 7.2 kDa protein mRNA, complete cds.
A192: 100 | B192: TTCACAAAGGAAGAACT | C192: HTC | D192: BC103751 | E192: proteasome (prosome, macropain) subunit, alpha type, 5, mRNA, complete cds.
A193: '' | B193: '' | C193: HTC | D193: BC018605 | E193: proteasome (prosome, macropain) subunit, alpha type, 5, mRNA (cDNA clone IMAGE:3925105), with apparent retained intron.
A194: 101 | B194: CACTTGCCCTAATAAAA | C194: cDNA | D194: AF044956 | E194: NADH:ubiquinone oxidoreductase B22 subunit mRNA, nuclear gene encoding mitochondrial protein, complete cds.
A195: '' | B195: '' | C195: cDNA | D195: AF261090 | E195: NADH-ubiquinone dehydrogenase 1 beta subcomplex mRNA, complete cds.
A196: '' | B196: '' | C196: cDNA | D196: S82655 | E196: NADH-ubiquinone oxidoreductase B22 subunit mRNA, nuclear gene for mitochondrial protein complete cds.
A197: 102 | B197: CGACCCCACGCCACCCC | C197: HTC | D197: BC072022 | E197: cDNA clone IMAGE:6263100, **** WARNING: chimeric clone ****.
A198: 103 | B198: TTCAAAAGAAAGCTGCA | C198: cDNA | D198: AF201938 | E198: DC3 (DC3) mRNA, complete cds.
A199: 104 | B199: GCCAGCCCAGCCTGGCT | C199: cDNA | D199: U95040 | E199: Human transcriptional corepressor hKAP1/TIF1B mRNA, complete cds.
A200: 105 | B200: CAACATTCCTGTGATCA | C200: cDNA | D200: U84143 | E200: Human D-dopachrome tautomerase mRNA, complete cds.
A201: 106 | B201: GTTCGTGCCAAATTCCG | C201: RIBO | D201: NM_000996 | E201: Homo sapiens ribosomal protein L35a (RPL35A), mRNA.
A202: 107 | B202: CCAAGTTTTTTGTGTGT | C202: HTC | D202: BC025957 | E202: transmembrane emp24 domain trafficking protein 2, mRNA, complete cds.
A203: 108 | B203: TAAATAATACATTGTTC | C203: HTC | D203: BC003662 | E203: eukaryotic translation initiation factor 4A, isoform 3, mRNA, complete cds.
... 410 more rows

Sheet LongSAGE_HgtC_66_RT_p-values
A1: Spreadsheet n°3 (use bottom tabs to see further spreadsheets)
A2: LongSAGE | B2: List of 66 RT (SBS frequency in healthy > SBS frequency in cancer)
A4: RT | B4: P-value (proportion test) | C4: Rank | D4: Adjusted p-value (FDR) | G4: 1-sided proportion tests with alpha = 0.025
A5: GTTGTGGTTAATCTGGT | B5: 5.670700981e-40 | C5: 1 | D5: =0.025*$C5/1959 -> 1.276161307e-05 | G5: 17 | H5: RT passed FDR at 0.025
A6: CCCCCTGGATCAGGCCA | B6: 3.307566064e-26 | C6: 2 | D6: 2.552322614e-05
A7: AGACCCACAACAAATAG | B7: 6.051822158e-11 | C7: 3 | D7: 3.82848392e-05
A8: TGGGTGAGCCAGTGGAA | B8: 2.596088647e-10 | C8: 4 | D8: 5.104645227e-05
A9: GTTCACATTAGAATAAA | B9: 1.61125086e-08 | C9: 5 | D9: 6.380806534e-05
A10: GAGAGTGTCTGCGGATA | B10: 6.597945121e-08 | C10: 6 | D10: 7.656967841e-05
A11: GTTGTCTTTGGGTGCCC | B11: 2.812802121e-07 | C11: 7 | D11: 8.933129148e-05
A12: CGTGGGTGGGGAGGGAG | B12: 8.302349931e-06 | C12: 8 | D12: 0.0001020929045
A13: GAGAGCTCCCGTGAGTG | B13: 1.517266798e-05 | C13: 9 | D13: 0.0001148545176
A14: GAAATACAGTTGTTGGC | B14: 1.589863029e-05 | C14: 10 | D14: 0.0001276161307
A15: TTTATTTCTACCCTTAA | B15: 1.787446767e-05 | C15: 11 | D15: 0.0001403777437
A16: TCAGAAGTTTTGTTTAA | B16: 1.841188278e-05 | C16: 12 | D16: 0.0001531393568
A17: ATTGTGAGGGGTAGGAG | B17: 3.770047814e-05 | C17: 13 | D17: 0.0001659009699
A18: GCCAGGGCGGGCCACTG | B18: 4.288676572e-05 | C18: 14 | D18: 0.000178662583
A19: TGGGTGGGGGGCACCCT | B19: 6.810115869e-05 | C19: 15 | D19: 0.000191424196
A20: ATCAAATGCAACCTCAC | B20: 0.0001818120502 | C20: 16 | D20: 0.0002041858091
A21: TTTGAAATGAGGTCTGT | B21: 0.0002037287398 | C21: 17 | D21: 0.0002169474222
A22: ACCCCTAACAGGGGCCC | B22: 0.000230937127 | C22: 18 | D22: 0.0002297090352
A23: TAACAGCCAGGAGTGTT | B23: 0.0003110791954 | C23: 19 | D23: 0.0002424706483
A24: CGCCGACGATGCCCAGA | B24: 0.0005470166079 | C24: 20 | D24: 0.0002552322614
A25: GCGCGGGCGAGTGTAGG | B25: 0.0005863985892 | C25: 21 | D25: 0.0002679938744
A26: TAACTGGAGGATGTGCT | B26: 0.0007497644886 | C26: 22 | D26: 0.0002807554875
A27: CTTGTAATCCTACTTGG | B27: 0.001291104071 | C27: 23 | D27: 0.0002935171006
A28: CAGCGCGCCCTGCAGGA | B28: 0.002135434139 | C28: 24 | D28: 0.0003062787136
A29: GGGCAGGGCACACTGGG | B29: 0.002351668805 | C29: 25 | D29: 0.0003190403267
A30: TGCTAAAAAAAAAAAAA | B30: 0.002405588282 | C30: 26 | D30: 0.0003318019398
A31: GGACTTTCCTTCCCTCT | B31: 0.002749246822 | C31: 27 | D31: 0.0003445635528
A32: TAGACTAGCAAAATAGT | B32: 0.002918364835 | C32: 28 | D32: 0.0003573251659
A33: ATGGCCTGTAACAGTTG | B33: 0.002954145653 | C33: 29 | D33: 0.000370086779
A34: GCCAGACACCCCAGTCC | B34: 0.00337631163 | C34: 30 | D34: 0.000382848392
A35: TGTTCCACTCCCAATAA | B35: 0.003441359518 | C35: 31 | D35: 0.0003956100051
A36: GGGGCTGTATTTAAGGA | B36: 0.003739274722 | C36: 32 | D36: 0.0004083716182
A37: CGTGTGCCTGTGTGTGG | B37: 0.0042140798 | C37: 33 | D37: =0.025*$C37/1959 -> 0.0004211332312
A38: GCGACAGCTCCACGGAA | B38: 0.004331910178 | C38: 34 | D38: 0.0004338948443
A39: CGGACTCACTGGAGAAC | B39: 0.004743992214 | C39: 35 | D39: 0.0004466564574
A40: CTTACAAGCAAGTACAG | B40: 0.005506518838 | C40: 36 | D40: 0.0004594180704
A41: GACCTCCTGCCCTGGGG | B41: 0.005775109059 | C41: 37 | D41: 0.0004721796835
A42: TGCATTAACTGTTGAAT | B42: 0.006522008075 | C42: 38 | D42: 0.0004849412966
A43: CAAATAAAAAGAATGGG | B43: 0.006640339268 | C43: 39 | D43: 0.0004977029096
A44: CATATCATTAAACAAAT | B44: 0.006874782443 | C44: 40 | D44: 0.0005104645227
A45: GCAGGAACAGCCACTTG | B45: 0.007478044697 | C45: 41 | D45: 0.0005232261358
A46: TGGCCATCTGCTCCCCA | B46: 0.00823413272 | C46: 42 | D46: 0.0005359877489
A47: TAACAGTTGTGTCATAA | B47: 0.008488795812 | C47: 43 | D47: 0.0005487493619
A48: TTCCACTAACCCCGGGC | B48: 0.008693272617 | C48: 44 | D48: 0.000561510975
A49: ACACTTGGAGGTTTAGC | B49: 0.01095181937 | C49: 45 | D49: 0.0005742725881
A50: ACCGCCGTGGTGAAGCT | B50: 0.01401427985 | C50: 46 | D50: 0.0005870342011
A51: TTAACCCTCTAGCTGAT | B51: 0.01435401989 | C51: 47 | D51: 0.0005997958142
A52: AAGGACCTTTTGACCAA | B52: 0.01458274049 | C52: 48 | D52: 0.0006125574273
A53: GAGAATCTGCTCTGTTT | B53: 0.01463001303 | C53: 49 | D53: 0.0006253190403
A54: GGTACCCATTTGATAAG | B54: 0.01570783632 | C54: 50 | D54: 0.0006380806534
A55: CTATGGCTTCACTAGCC | B55: 0.01655962829 | C55: 51 | D55: 0.0006508422665
A56: GCCGTGGAGAGCACCGG | B56: 0.01691414243 | C56: 52 | D56: 0.0006636038795
A57: CTGTAGTTGCCAGCCCA | B57: 0.01728918193 | C57: 53 | D57: 0.0006763654926
A58: ATGGCCTCCTCCTTCAG | B58: 0.01744901696 | C58: 54 | D58: 0.0006891271057
A59: TTTACAAGTTACAACCA | B59: 0.01825804431 | C59: 55 | D59: 0.0007018887187
A60: GCAGGTCAGCCTGTGGA | B60: 0.01932439406 | C60: 56 | D60: 0.0007146503318
A61: GTAGGAGCTGGACCAAC | B61: 0.01958689725 | C61: 57 | D61: 0.0007274119449
A62: GGGGCCCCCTCACCTTG | B62: 0.02011358423 | C62: 58 | D62: 0.0007401735579
A63: TCACGCGCTCCTGGGCC | B63: 0.02030299174 | C63: 59 | D63: 0.000752935171
A64: CCTCTATGTTACCCATC | B64: 0.02144967978 | C64: 60 | D64: 0.0007656967841
A65: AGTAAACCATCAGAGAA | B65: 0.02173395772 | C65: 61 | D65: 0.0007784583971
A66: ACTCAGCCCGGCTGATG | B66: 0.02229301952 | C66: 62 | D66: 0.0007912200102
A67: GCTGGGAGGGGCCTCTG | B67: 0.02287581698 | C67: 63 | D67: 0.0008039816233
A68: CTGGGATCATCGGGGGA | B68: 0.02329844061 | C68: 64 | D68: 0.0008167432363
A69: ATGGTCAGTAGCTGATC | B69: 0.02365903439 | C69: 65 | D69: 0.0008295048494
A70: TAGAAGATGCCTAGCCC | B70: 0.02464377895 | C70: 66 | D70: 0.0008422664625

Sheet LongSAGE_HgtC_17_RT_FDR_mapped
A1: Spreadsheet n°4 (use bottom tabs to see further spreadsheets)
A2: LongSAGE | B2: Mapping of the 17 RT (SBS frequency in healthy > SBS frequency in cancer) that passed FDR
A4: # Date : Tue_Jul_20_19:55:10_CEST_2010
A5: # Genbank release : NCBI-GenBank_Flat_File_Release_175.0
A6: # Unigene build : UniGene_Build_222_Homo_sapiens
A7: # Organism : Homo_sapiens
A8: # Enzym : NlaIII
A9: # Mapper : Sagettarius
A12: Rank | B12: RT | C12: Sequence | D12: Genbank Acc. | E12: Description
A13: 1 | B13: GTTGTGGTTAATCTGGT | C13: HTC | D13: BC032589 | E13: beta-2-microglobulin, mRNA, complete cds.
A14: 2 | B14: CCCCCTGGATCAGGCCA | C14: HTC | D14: BC001431 | E14: S100 calcium binding protein A6, mRNA, complete cds.
A15: 3 | B15: AGACCCACAACAAATAG | C15: EST | D15: EL948569 | E15: 1 Hs.605234 Transcribed locus, moderately similar to XP_001476404.1 PREDICTED: hypothetical protein [Mus musculus]
A16: 4 | B16: TGGGTGAGCCAGTGGAA | C16: HTC | D16: BC010240 | E16: cathepsin B, mRNA, complete cds.
A17: '' | B17: '' | E17: HTC
A18: 5 | B18: GTTCACATTAGAATAAA | C18: HTC | D18: BC018726 | E18: CD74 molecule, major histocompatibility complex, class II invariant chain, mRNA, complete cds.
A19: 6 | B19: GAGAGTGTCTGCGGATA | C19: HTC | D19: BC000866 | E19: TIMP metallopeptidase inhibitor 1, mRNA, complete cds.
A20: 7 | B20: GTTGTCTTTGGGTGCCC | C20: HTC | D20: BC150179 | E20: complement component 3, mRNA, complete cds.
A21: 8 | B21: CGTGGGTGGGGAGGGAG | C21: HTC | D21: BC001491 | E21: heme oxygenase (decycling) 1, mRNA, complete cds.
A22: 9 | B22: GAGAGCTCCCGTGAGTG | C22: - | D22: -
A23: 10 | B23: GAAATACAGTTGTTGGC | C23: HTC | D23: BC016320 | E23: cathepsin D, mRNA, complete cds.
A24: 11 | B24: TTTATTTCTACCCTTAA | C24: EST | D24: AA017529 | E24: 45 Hs.349656 Scavenger receptor class B, member 2
A25: 12 | B25: TCAGAAGTTTTGTTTAA | C25: HTC | D25: BC045642 | E25: metadherin, mRNA, complete cds.
A26: 13 | B26: ATTGTGAGGGGTAGGAG | C26: - | D26: -
A27: 14 | B27: GCCAGGGCGGGCCACTG | C27: EST | D27: BM677093 | E27: 10 Hs.373741 Histocompatibility (minor) 13
A28: 15 | B28: TGGGTGGGGGGCACCCT | C28: HTC | D28: AF370420 | E28: PP14397 mRNA, complete cds.
A29: 16 | B29: ATCAAATGCAACCTCAC | C29: HTC | D29: BC000141 | E29: v-myc myelocytomatosis viral oncogene homolog (avian), mRNA, complete cds.
A30: 17 | B30: TTTGAAATGAGGTCTGT | C30: cDNA | D30: AF251292 | E30: DC21 mRNA, complete cds.
A31: '' | B31: '' | C31: cDNA | D31: M77693 | E31: Spermidine/spermine N1-acetyltransferase mRNA, complete cds
